Cogmind - Beta 12 @@@ ROGUE MODE // 2023.03.13 @ 00:10:50 Player: Runia Result: Destroyed by D-53 Grenadier with Mini Grenade Launcher Performance ------------- Evolutions (0) 0 Regions Visited (2) 400 Robots Destroyed (15) 75 Value Destroyed (321) 321 Prototype IDs (0) 0 Alien Tech Used (0) 0 Bonus (0) 0 TOTAL SCORE: 796 Bonus ------- None Cogmind --------- Core Integrity 0/250 Matter 250/300 Energy 100/100 System Corruption 0% Temperature Cool (0) Movement Core (700) Ox13 Location -10/Mines Parts ------- > --- POWER (1) -------- (None) > --- PROPULSION (2) --- (None) > --- UTILITY (2) ------ High-capacity Storage Unit > --- WEAPON (2) ------- (None) > --- INVENTORY (20) --- Ion Engine Light Treads Light Treads Light Treads Compact Wheel Heat Sink High-capacity Matter Pod (200) Particle Gun Beam Cannon Light Assault Rifle Light Assault Rifle Light Assault Rifle Grenade Launcher Peak State ------------ > --- POWER ------------ Light Nuclear Core > --- PROPULSION ------- Light Treads Wheel > --- UTILITY ---------- High-capacity Storage Unit Light Armor Plating > --- WEAPON ----------- Light Assault Rifle Light Assault Rifle > --- INVENTORY -------- Ion Engine Light Treads Light Treads Light Treads Compact Wheel Heat Sink High-capacity Matter Pod Particle Gun Beam Cannon Light Assault Rifle Grenade Launcher Grenade Launcher Grenade Launcher [Rating: 10] Favorites ----------- Power Light Ion Engine Engine Light Ion Engine Power Core Light Nuclear Core Propulsion Light Treads Treads Light Treads Leg Aluminum Leg Wheel Wheel Utility High-capacity Storage Unit Storage High-capacity Storage Unit Processor Targeting Computer Protection Light Armor Plating Weapon Beam Cannon Energy Gun Particle Gun Energy Cannon Beam Cannon Ballistic Gun Light Assault Rifle Launcher Grenade Launcher Build | -11 -10 -10 ------- Run | Jun Mat Min Slots Evolved . | . . . Power . | . . . Propulsion . | . . . Utility . | . . . Weapon . | . . . Parts Attached 19 | 3 8 8 Power 2 | . 1 1 Engine 1 | . 1 . Core 1 | . . 1 Reactor . | . . . Propulsion 4 | 2 1 1 Treads 2 | 2 . . Leg . | . . . Wheel 2 | . 1 1 Hover . | . . . Flight . | . . . Utility 4 | . 4 . Device . | . . . Storage 2 | . 2 . Processor 1 | . 1 . Hackware . | . . . Protection 1 | . 1 . Artifact . | . . . Weapon 9 | 1 2 6 Energy Gun 2 | 1 1 . Energy Cannon 1 | . 1 . Ballistic Gun 3 | . . 3 Ballistic Cannon . | . . . Launcher 3 | . . 3 Special Weapon . | . . . Impact Weapon . | . . . Slashing Weapon . | . . . Piercing Weapon . | . . . Special Melee Weapon . | . . . Unidentified Prototypes . | . . . Parts Lost 9 | . 2 7 Power 2 | . 1 1 Propulsion 3 | . . 3 Utility 1 | . . 1 Weapon 3 | . 1 2 Highest Loss Streak 6 | . 1 6 To Critical Strikes . | . . . Average Slot Usage (%) 88 | . 86 99 Engine 12 | . 12 10 Treads 15 | . 16 14 Wheel 12 | . 11 13 Storage 14 | . 14 14 Processor 1 | . 2 . Protection 3 | . 1 14 Energy Gun 14 | . 16 3 Energy Cannon 9 | . 11 3 Ballistic Gun 2 | . . 18 Naked Turns . | . . . Heaviest Build 52 | 12 52 52 Greatest Support 40 | 40 40 10 Greatest Overweight (x) 5 | . 5 5 Average Overweight (x) 2 | . 2 4 Largest Inventory Capacity 20 | 8 20 20 Average Capacity 15 | 8 14 20 Most Carried 14 | 6 14 13 Average Carried 9 | 4 9 12 Final Capacity 20 | 8 20 20 Final Carried 13 | 3 13 13 Class Distribution -------------------- 100% | Mutant Dominant Class ---------------- Mutant | -10/Materials Mutant | -10/Mines Resources | -11 -10 -10 ----------- Run | Jun Mat Min Matter Collected 601 | 200 290 111 Remotely . | . . . Salvage Created 579 | . 445 134 Parts 27 | . 22 5 Haulers Intercepted 2 | . 2 . Recyclers Shooed 1 | . 1 . Parts Field Recycled . | . . . Retrieved Matter . | . . . Parts Self-Destructed . | . . . Prevented . | . . . Kills | -11 -10 -10 ------- Run | Jun Mat Min Combat Hostiles Destroyed 9 | . 7 2 Guns 6 | . 5 1 Cannons 2 | . 2 . AOE 1 | . . 1 Classes Destroyed 6 | . 6 . Hauler 2 | . 2 . Recycler 2 | . 1 1 Operator 1 | . 1 . Watcher 1 | . 1 . Swarmer 3 | . 3 . Grunt 6 | . 4 2 Best Kill Streak 4 | . 4 2 Combat Bots Only 2 | . 2 2 Max Kills in Single Turn 1 | . 1 1 Gunslinging . | . . . Exploded 1 | . . 1 Melee . | . . . Uniques/NPCs Destroyed . | . . . Combat | -11 -10 -10 -------- Run | Jun Mat Min Damage Taken 957 | . 273 684 Core 251 | . 37 214 Absorbed by Shields . | . . . Core Remaining (%) 100 | 100 . . Volleys Fired 46 | . 32 14 Largest 2 | . 2 2 Hottest 125 | . 125 60 Shots Fired 84 | . 59 25 Gun 52 | . 36 16 Cannon 23 | . 23 . Launcher 9 | . . 9 Special . | . . . Kinetic 16 | . . 16 Thermal 46 | . 46 . Explosive 9 | . . 9 Electromagnetic 13 | . 13 . Robot Hit Streak 7 | . 6 7 Robot Miss Streak 3 | . 2 3 Penetration Max . | . . . Secondary Targets . | . . . Shots Hit Robots 58 | . 40 18 Core Hits 31 | . 17 14 Critical Kills . | . . . Critical Parts Destroyed . | . . . Critical Strikes 1 | . 1 . Burn 1 | . 1 . Melee Attacks . | . . . Impact . | . . . Slashing . | . . . Piercing . | . . . Sneak Attacks . | . . . Combat Hostiles . | . . . Follow-up Attacks . | . . . Damage Inflicted 1006 | . 620 386 Guns 528 | . 444 84 Cannons 176 | . 176 . Explosions 302 | . . 302 Melee . | . . . Ramming . | . . . Kinetic 84 | . . 84 Thermal 455 | . 455 . Explosive 302 | . . 302 Electromagnetic 165 | . 165 . Impact . | . . . Slashing . | . . . Piercing . | . . . Highest Corruption . | . . . Average Corruption . | . . . Corruption Purged . | . . . Corruption Blocked . | . . . Overload Shots . | . . . Overflow Damage . | . . . Projectiles . | . . . Explosions . | . . . Melee . | . . . Knockbacks . | . . . Impact . | . . . Kinetic . | . . . Secondary . | . . . Self-Inflicted Damage 128 | . . 128 Shots 7 | . . 7 Rammed . | . . . Targets Rammed . | . . . Kicked . | . . . Crushed . | . . . Highest Temperature 393 | . 393 31 Average Temperature 105 | . 125 11 Received Heat Transfer 201 | . 144 57 Effects 3 | . 3 . Interference 3 | . 3 . Siege Activations . | . . . Robots Corrupted . | . . . Combat Hostiles . | . . . Parts Fried 1 | . 1 . Impact Corruptions . | . . . Robots Melted . | . . . Combat Hostiles . | . . . Parts Melted 1 | . 1 . Heat Transferred 1110 | . 1110 . Parts Sabotaged . | . . . Parts Stolen . | . . . Parts Stripped . | . . . Power Chain Reactions . | . . . Missiles Intercepted . | . . . Alert | -11 -10 -10 ------- Run | Jun Mat Min Peak Influence 130 | . 130 87 Initial 5 | . . 5 Average 45 | . 47 35 Maximum Alert Level . | . . . Low Security (%) 100 | 100 100 100 Level 1 . | . . . Level 2 . | . . . Level 3 . | . . . Level 4 . | . . . Level 5 . | . . . High Security . | . . . Max Security . | . . . Squads Dispatched 2 | . 2 . Investigation 2 | . 2 . Extermination . | . . . Reinforcement . | . . . Assault . | . . . Garrison . | . . . Intercept . | . . . Searches Triggered . | . . . Construction Impeded . | . . . Haulers Reinforced . | . . . Active Scanning Responses . | . . . Cargo Convoy Interrupts . | . . . Stealth | -11 -10 -10 --------- Run | Jun Mat Min Distress Signals 2 | . 2 . Communications Jammed . | . . . Distress Signals . | . . . Times Spotted 17 | . 13 4 Peak Tracking Total 4 | . 4 2 Tactical Retreats . | . . . Traps | -11 -10 -10 ------- Run | Jun Mat Min Traps Triggered 1 | . 1 . Indirectly . | . . . Trap Hack Attempts . | . . . Triggered . | . . . Disarmed . | . . . Reprogrammed . | . . . Reused . | . . . Traps Extracted . | . . . Installed . | . . . Triggered . | . . . Machines | -11 -10 -10 ---------- Run | Jun Mat Min Machines Disabled 1 | . 1 . Max in Single Turn 1 | . 1 . Machines Repaired . | . . . Machines Sabotaged . | . . . Overloaded Fab Kills . | . . . Hacking | -11 -10 -10 --------- Run | Jun Mat Min Machines Accessed 7 | . 7 . Terminals 7 | . 7 . Fabricators . | . . . Repair Stations . | . . . Recycling Units . | . . . Scanalyzers . | . . . Garrison Access . | . . . Total Hacks 18 | . 18 . Successful 7 | . 7 . Failed 10 | . 10 . Catastrophic 2 | . 2 . Database Lockouts 1 | . 1 . Manual 13 | . 13 . Terminals 18 | . 18 . Fabricators . | . . . Repair Stations . | . . . Recycling Units . | . . . Scanalyzers . | . . . Garrison Access . | . . . Terminal Hacks 6 | . 6 . Part Schematic 2 | . 2 . Robot Analysis 1 | . 1 . Locate Traps 3 | . 3 . Fabricator Hacks . | . . . Repair Station Hacks . | . . . Recycling Unit Hacks . | . . . Scanalyzer . | . . . Garrison Access Hacks . | . . . Unauthorized Hacks 1 | . 1 . Terminals 1 | . 1 . Botnet 1 | . 1 . Fabricators . | . . . Repair Stations . | . . . Recycling Units . | . . . Scanalyzers . | . . . Garrison Access . | . . . Data Cores Recovered . | . . . Used . | . . . Hacking Detections 7 | . 7 . Full Trace Events 1 | . 1 . Feedback Events . | . . . Feedback Blocked . | . . . Robot Schematics Acquired . | . . . Robots Built . | . . . Authchips . | . . . Time . | . . . Total Robot Build Rating . | . . . Part Schematics Acquired 2 | . 2 . Parts Built . | . . . Authchips . | . . . Time . | . . . Total Part Build Rating . | . . . Parts Repaired . | . . . Time . | . . . Parts Recycled . | . . . Recycled Matter . | . . . Retrieved Matter . | . . . Retrieved Components . | . . . Parts Scanalyzed . | . . . Part Schematics Acquired . | . . . Parts Damaged . | . . . Bothacking | -11 -10 -10 ------------ Run | Jun Mat Min Used RIF Installer . | . . . Robots Hacked . | . . . Non-combat . | . . . Combat . | . . . Robot Hacks Applied . | . . . Relay Couplers Released . | . . . Fabnet Peak Effective % . | . . . Robots Rewired . | . . . Allies Hacked . | . . . Hacks Repelled . | . . . Allies | -11 -10 -10 -------- Run | Jun Mat Min Total Allies . | . . . Largest Group . | . . . Highest-Rated Group . | . . . Highest-Rated Ally . | . . . Total Orders . | . . . Ally Attacks . | . . . Total Damage . | . . . Kills . | . . . Allies Corrupted . | . . . Allies Melted . | . . . Intel | -11 -10 -10 ------- Run | Jun Mat Min Robot Analysis Total 1 | . 1 . Derelict Logs Recovered . | . . . Drone Launches . | . . . Drone Recoveries . | . . . Exploration | -11 -10 -10 ------------- Run | Jun Mat Min Turns Passed 1145 | 5 954 186 Spaces Moved 697 | 1 609 87 Core . | . . . Treads 86 | 1 85 . Legs . | . . . Wheels 611 | . 524 87 Hover . | . . . Flight . | . . . Fastest Speed 95 | 160 95 140 Average Speed 131 | 160 129 145 Slowest Speed 160 | 160 160 155 Overloaded Moves . | . . . Propulsion Burnouts . | . . . Robots Hopped . | . . . Cave-ins Triggered . | . . . Exploration Rate (%) 36 | 2 93 15 Regions Visited 2 Branch Regions 1 Pre-discovered Areas . | . . . Known Exits Taken . | . . . Unknown Exits Taken 2 | 1 1 . Scrap Searched . | . . . Spaces Dug . | . . . Terrain Destroyed 66 | . . 66 Melee . | . . . Projectile . | . . . AOE 66 | . . 66 Terrain Rammed . | . . . Walls Destroyed . | . . . Machines Disabled . | . . . Actions | -11 -10 -10 --------- Run | Jun Mat Min Total 843 | 6 715 122 Wait 61 | . 50 11 Move 695 | . 608 87 Hop . | . . . Pick Up 14 | . 13 1 Fast Attach 5 | . 4 1 Attach 7 | 3 3 1 Detach . | . . . Swap 7 | . 1 6 Drop 8 | 3 4 1 Fire 46 | . 32 14 Melee . | . . . Ram . | . . . Kick . | . . . Crush . | . . . Escape Stasis . | . . . Rewire . | . . . Trap . | . . . Miscellaneous . | . . . Route ------- -11/Junkyard -10/Materials (discovered 4 exits: [*Mat x2] / [*Min x2]) -10/Mines (discovered 1 exit: [*Mat]) History --------- Turn | Location | Event 6 | -11/Junkyard | Discovered new exit (range 0) 6 | -11/Junkyard | Entered Materials 235 | -10/Materials | Discovered new exit (range 13) 269 | -10/Materials | Discovered new exit (range 3) 286 | -10/Materials | Discovered new exit (range 16) 312 | -10/Materials | Build established: Mutant 689 | -10/Materials | Central database locked down 846 | -10/Materials | Discovered new exit (range 16) 960 | -10/Materials | Entered Mines 973 | -10/Mines | Discovered new exit (range 9) 1115 | -10/Mines | Assembled infested the area 1143 | -10/Mines | Core integrity fell below 50% 1146 | -10/Mines | Core integrity fell below 20% 1146 | -10/Mines | Destroyed by D-53 Grenadier with Mini Grenade Launcher Last Messages --------------- 01101_ U-05 Engineer lays Concrete. 01102_ U-05 Engineer builds a Wall. 01105_ Acquired 10 matter. 01106_ U-05 Engineer lays Concrete. 01111_ U-05 Engineer builds a Wall. 01115_ ALERT: Infestation in the mines, dispatching Demolisher response squad. 01116_ U-05 Engineer builds a Wall. 01120_ U-05 Engineer lays Concrete. 01122_ U-05 Engineer builds a Wall. 01137_ C-30 ARC bursts open, deploying its payload. 01137_ D-53 Grenadier unfolds itself. 01140_ Lgt. Armor Plating destroyed. 01140_ Lgt. Treads destroyed. 01140_ Lgt. Nuclear Core destroyed. 01141_ Wheel destroyed. 01144_ The unstable cave ceiling collapses. 01144_ Grenade Launcher destroyed. 01145_ The unstable cave ceiling collapses. 01145_ U-05 Engineer lays Concrete. Map ----- +----------------------------------------------------+ | | | | | | | | | | | | | | | | | | | | | | | ?????????????????????????????????????????????????? | | ?????????????????????????????????????????????????? | | ####?????????????????????????????????????????????? | | # ##????????????????????????????????????????????? | | #????????????????????????????????????????????? | | #????????????????????????????????????????????? | | #?????????????????????????????????????????????? | | #####???????????????????????#?????????????????? | | #?????????????????????? #?????????????????? | | < ##?????????????####### #?????????????????? | | # #????????????## # #?????????????????? | | ## ##??????????## #???? ?????????? | | ## ##?????????# # ????????? | | ### #???????### t ????????? | | ### #???????# @ #??????????? | | #?# [ ######### #???????????? | | ??## % % u ##???????????? | | ???# * dd ##????????????? | | ???# ######### ## ##?????????????? | | ???##### ####????## ###??## #??????????????? | | ???????###????????# #???????#??????????????? | | ????????????????? # # ###??????????????????????? | | ???????????????? #####?????????????????????????? | | ??????????????? ???????????????????????????????? | | ?????????????? ????????????????????????????????? | | ?????????????? ?????????????????????????????????? | | ?????????????????????????????????????????????????? | | ?????????????????????????????????????????????????? | | ?????????????????????????????????????????????????? | | ?????????????????????????????????????????????????? | | ?????????????????????????????????????????????????? | | ?????????????????????????????????????????????????? | | ?????????????????????????????????????????????????? | | ?????????????????????????????????????????????????? | | ?????????????????????????????????????????????????? | | ?????????????????????????????????????????????????? | | ?????????????????????????????????????????????????? | | ?????????????????????????????????????????????????? | | ?????????????????????????????????????????????????? | +----------------------------------------------------+ Best States ------------- Heat Dissipation 25 Energy Generation 14 Energy Capacity 160 Matter Stores 300 Matter Capacity 300 Sight Range 16 Terrain Scan Density 10 Armor Coverage 150 Evasion (%) 41 Targeting Accuracy 5 Recoil Reduction 2 Item Schematics ----------------- Huge Storage Unit | -10/Materials | Hacked Lgt. Ion Engine | -10/Materials | Hacked Robot Schematics ------------------ None Fabricated ------------ Nothing Alien Tech Used ----------------- None Achievements -------------- None Challenges ------------ None Game ------ Seed ShadeSeismicShifter Manual? 0 Play Time 00:08:46 Cumulative 772.4 hours Start 2023.03.13 @ 00:02:45 End 2023.03.13 @ 00:10:50 Sessions 1 Manual Loads 0 Difficulty Rogue Special Mode None Game No. 671 Rogue 671 Adventurer 0 Explorer 0 Win Type - Total 35 Types 14/5/6/1/1/1/5/1/1 Lore% 93 Gallery% 97 Achievement% 81 Wizard Run 0 Options --------- ASCII 0 Keyboard 0 Movement Mouse Keybinds 1 Fullscreen 2 Font 24/Smallcaps Map View 76x50 Tactical HUD 1 Map Filters NONE Filters NONE Steam 1 RUN: 754e2ecd-d18a-421e-8f27-44be2f928899